lending/lending_fUSD_20241229
["ID","MTS","AMOUNT","RATE_DAILY","PERIOD"]
[347090474,1735492276660,-1000.0,0.0001752,2]
[347090475,1735492276671,-1000.0,0.0001752,2]
[347090476,1735492276681,-1000.0,0.0001752,2]
[347090477,1735492276690,-1000.0,0.0001752,2]
[347090478,1735492276699,-1059.31704921,0.00017542,2]
[347090479,1735492276709,-1055.35626501,0.00017542,2]
[347090480,1735492276718,-823.77,0.00017563,2]
[347090481,1735492276727,-3884.19,0.00017563,2]
[347090482,1735492276736,-2947.67,0.00017563,2]
[347090483,1735492276746,-894.1,0.00017563,2]
[347090484,1735492276756,-1301.93,0.00017563,2]
[347090485,1735492276765,-428.34248832,0.00017563,2]
[347090486,1735492276775,-1699.41,0.00017563,2]
[347090487,1735492276784,-500.0,0.00017563,2]
[347090488,1735492276793,-507.7,0.00017563,2]
[347090489,1735492276803,-846.62,0.00017563,2]
[347090490,1735492276812,-518.89,0.00017563,2]
[347090491,1735492276822,-602.95,0.00017563,2]
[347090492,1735492276832,-578.18,0.00017563,2]
[347090493,1735492276842,-359.66986705,0.00017563,2]
[347090494,1735492276851,-1058.51,0.00017563,2]
[347090495,1735492276861,-638.58,0.00017563,2]
[347090496,1735492276871,-994.13,0.00017563,2]
[347090497,1735492276881,-3094.75,0.00017563,2]
[347090498,1735492276891,-882.64,0.00017563,2]
[347090499,1735492276901,-896.87,0.00017563,2]
[347090500,1735492276911,-863.02,0.00017563,2]
[347090501,1735492276920,-698.08,0.00017563,2]
[347090502,1735492276930,-581.65,0.00017563,2]
[347090503,1735492276940,-2036.77,0.00017563,2]
[347090504,1735492276949,-230.52737932,0.00017563,2]
[347090505,1735492276959,-510.33,0.00017563,2]
[347090506,1735492276969,-2338.46,0.00017563,2]
[347090507,1735492276979,-689.34,0.00017563,2]
[347090508,1735492276988,-715.59,0.00017563,2]
[347090509,1735492276997,-1526.23,0.00017563,2]
[347090510,1735492277007,-830.18,0.00017563,2]
[347090511,1735492277016,-2541.75,0.00017563,2]
[347090512,1735492277027,-1474.73,0.00017563,2]
[347090513,1735492277037,-489.88519713,0.00017563,2]
[347090514,1735492277047,-907.52,0.00017563,2]
[347090515,1735492277056,-513.3,0.00017563,2]
[347090516,1735492277066,-981.1,0.00017563,2]
[347090517,1735492277076,-948.08,0.00017563,2]
[347090518,1735492277085,-678.69,0.00017563,2]
[347090519,1735492277095,-512.72,0.00017564,2]
[347090520,1735492277105,-500.0,0.00017564,2]
[347090521,1735492277114,-500.0,0.00017564,2]
[347090522,1735492277124,-500.0,0.00017564,2]
[347090523,1735492277133,-500.0,0.00017564,2]
[347090524,1735492277143,-500.0,0.00017564,2]
[347090525,1735492277153,-1150.05,0.00017564,2]
[347090526,1735492277163,-605.13,0.00017564,2]
[347090527,1735492277173,-500.0,0.00017564,2]
[347090528,1735492277184,-4131.33,0.00017564,2]
[347090529,1735492277195,-574.75666289,0.00017565,2]
[347090530,1735492277204,-650.51,0.00017565,2]
[347090531,1735492277215,-515.44,0.00017566,2]
[347090532,1735492277224,-15629.55988822,0.0001759,2]
[347090533,1735492277234,-31111.08629891,0.000176,2]
[347090534,1735492277244,-1000.0,0.00017613,2]
[347090535,1735492277253,-2038.0,0.0001764,2]
[347090536,1735492277263,-2000.0,0.00017668,2]
[347090537,1735492277272,-60000.0,0.000177,3]
[347090538,1735492277287,-15011.78,0.000177,7]
[347090539,1735492277296,-20265.52,0.00017728,2]
[347090540,1735492277306,-29999.99,0.00017728,2]
[347090541,1735492277316,-59617.0,0.00017732,2]
[347090542,1735492277325,-166.93681204,0.00017738,2]
[347090543,1735492277335,-1138.0,0.0001774,2]
[347090544,1735492277345,-672.0,0.0001774,2]
[347090545,1735492277355,-2907.88,0.00017781,7]
[347090546,1735492277365,-2907.88,0.00017781,7]
[347090547,1735492277375,-8777.5659099,0.00017788,2]
[347090548,1735492277385,-3814.3665968,0.00017788,2]
[347090549,1735492277394,-44966.7001782,0.00017799,7]
[347090550,1735492277404,-300.0,0.00017799,2]
[347090551,1735492277414,-300.0,0.00017799,2]
[347090552,1735492277424,-300.0,0.00017799,2]
[347090553,1735492277434,-12377.07228496,0.000178,2]
[347090554,1735492277444,-24412.008407,0.000178,2]
[347090555,1735492277454,-24412.008407,0.000178,2]
[347090556,1735492277464,-24412.008407,0.000178,2]
[347090557,1735492277473,-24412.008407,0.000178,2]
[347090558,1735492277483,-24412.008407,0.000178,2]
[347090559,1735492277492,-24412.008407,0.000178,2]
[347090560,1735492277502,-24412.008407,0.000178,2]
[347090561,1735492277511,-24412.008407,0.000178,2]
[347090562,1735492277521,-24412.008407,0.000178,2]
[347090563,1735492277532,-24412.008407,0.000178,2]
[347090564,1735492277541,-24412.008407,0.000178,2]
[347090565,1735492277551,-24412.008407,0.000178,2]
[347090566,1735492277561,-24412.008407,0.000178,2]
[347090567,1735492277572,-24412.008407,0.000178,2]
[347090568,1735492277581,-24412.008407,0.000178,2]
[347090569,1735492277591,-24412.008407,0.000178,2]
[347090570,1735492277605,-24412.008407,0.000178,2]
[347090571,1735492277615,-24412.008407,0.000178,2]
[347090572,1735492277624,-24412.008407,0.000178,2]
[347090573,1735492277634,-24412.008407,0.000178,2]
[347090574,1735492277645,-24412.008407,0.000178,2]
[347090575,1735492277655,-24412.008407,0.000178,2]
[347090576,1735492277665,-21390.69050525,0.000178,2]
[347090577,1735492277675,-505.20684469,0.000178,15]
[347090578,1735492277686,-1116671.82216756,0.000178,3]
[347090579,1735492277910,-512.75000187,0.000178,3]
[347090580,1735492277922,-594.750028,0.000178,3]
[347090581,1735492277946,-500.0,0.00013454,2]
[347090582,1735492277956,-25029.38017754,0.000178,3]
[347090583,1735492277966,-50550.75205278,0.000178,3]
[347090584,1735492277977,-621.24655047,0.000178,3]
[347090585,1735492277988,-1003.5,0.000178,3]
[347090586,1735492278000,-46631.0,0.000178,3]
[347090587,1735492278011,-33314.63051927,0.000178,3]
[347090588,1735492278022,-417827.54301757,0.000178,3]
[347090589,1735492278130,209.75,0.00010137,2]
[347090590,1735492278231,-500.0,0.00011535,2]
[347090591,1735492278241,-179.325,0.00011536,2]
[347090592,1735492278261,-320.675,0.00011536,2]
[347090593,1735492278271,-500.0,0.00011809,2]
[347090594,1735492278282,-500.0,0.00012083,2]
[347090595,1735492278292,-500.0,0.00012631,2]
[347090596,1735492278303,-500.0,0.00013453,2]
[347090597,1735492278313,-290.08,0.00013727,2]
[347090598,1735492278323,-470.44458591,0.00013728,2]
[347090599,1735492278333,-1415.18338173,0.00014001,2]
[347090600,1735492278353,-4595.80661827,0.00014001,2]
[347090601,1735492278363,-500.0,0.00015097,2]
[347090602,1735492278373,-213.29690118,0.00016659,2]
[347090603,1735492278383,-751.93009659,0.00016742,2]
[347090604,1735492278398,-736.39990341,0.00016742,2]
[347090605,1735492278408,-209.75,0.00016813,2]
[347090606,1735492278418,-3627.86550497,0.000178,3]
[347090607,1735492278433,-4932.91611465,0.000178,3]
[347090608,1735492278445,-792.10594231,0.000178,3]
[347090609,1735492278458,-1847.985,0.000178,3]
[347090610,1735492278470,-1411.3979521,0.000178,3]
[347090611,1735492278497,-500.0,0.00011535,2]
[347090612,1735492278508,-500.0,0.00012905,2]
[347090613,1735492278519,-42547.0805,0.000178,3]
[347090614,1735492278533,-8336.40509996,0.000178,3]
[347090615,1735492278546,-311.77213188,0.000178,3]
[347090616,1735492278560,-970.14997,0.000178,3]
[347090617,1735492278593,-504.99,0.00011535,2]
[347090618,1735492278604,-480.08995557,0.00012357,2]
[347090619,1735492278616,-19.91004443,0.00012357,2]
[347090620,1735492278627,-1431.9734557,0.000178,3]
[347090621,1735492278640,-3369.57391649,0.000178,3]
[347090622,1735492278653,-3003.0,0.000178,3]
[347090623,1735492278665,-10049.0,0.000178,3]
[347090624,1735492278680,-6423.6440132,0.000178,3]
[347090625,1735492278692,-300.0,0.000178,3]
[347090626,1735492279695,-500.0,0.00011535,2]
[347090627,1735492279704,-773.68,0.00011535,2]
[347090628,1735492279714,-515.67,0.00011536,2]
[347090629,1735492279723,-152.77400669,0.00011809,2]
[347090630,1735492279735,-347.22599331,0.00011809,2]
[347090631,1735492279745,-500.0,0.00011809,2]
[347090632,1735492279754,-773.68,0.00011809,2]
[347090633,1735492279764,-88.02955669,0.00012083,2]
[347090634,1735492279792,-343.87044331,0.00012083,2]
[347090635,1735492279802,-500.0,0.00012083,2]
[347090636,1735492279811,-773.68,0.00012083,2]
[347090637,1735492279820,-500.0,0.00012084,2]
[347090638,1735492279830,-500.0,0.00012357,2]
[347090639,1735492279839,-773.68,0.00012357,2]
[347090640,1735492279849,-500.0,0.00012631,2]
[347090641,1735492279858,-500.0,0.00012631,2]
[347090642,1735492279868,-773.68,0.00012631,2]
[347090643,1735492279878,-500.0,0.00012905,2]
[347090644,1735492279888,-500.0,0.00012905,2]
[347090645,1735492279897,-773.68,0.00012905,2]
[347090646,1735492279907,-500.0,0.00013179,2]
[347090647,1735492279916,-500.0,0.00013179,2]
[347090648,1735492279925,-500.0,0.00013179,2]
[347090649,1735492279936,-500.0,0.00013453,2]
[347090650,1735492279945,-500.0,0.00013453,2]
[347090651,1735492279955,-500.0,0.00013453,2]
[347090652,1735492279964,-500.0,0.00013727,2]
[347090653,1735492279975,-500.0,0.00013727,2]
[347090654,1735492279984,-231.52,0.00013727,2]
[347090655,1735492279993,-500.0,0.00014001,2]
[347090656,1735492280003,-500.0,0.00014001,2]
[347090657,1735492280012,-6010.99,0.00014275,2]
[347090658,1735492280021,-500.0,0.00014275,2]
[347090659,1735492280032,-500.0,0.00014275,2]
[347090660,1735492280042,-6010.99,0.00014549,2]
[347090661,1735492280052,-160.18385472,0.00014549,2]
[347090662,1735492280065,-58.03614528,0.00014549,2]
[347090663,1735492280075,-500.0,0.00014549,2]
[347090664,1735492280085,-6010.99,0.00014823,2]
[347090665,1735492280095,-6010.99,0.00015097,2]
[347090666,1735492280106,-500.0,0.00015371,2]
[347090667,1735492280115,-6010.99,0.00015371,2]
[347090668,1735492280125,-500.0,0.00015645,2]
[347090669,1735492280135,-6010.99,0.00015645,2]
[347090670,1735492280145,-500.0,0.00015919,2]
[347090671,1735492280155,-6010.99,0.00015919,2]
[347090672,1735492280164,-500.0,0.00016193,2]
[347090673,1735492280174,-484.72398832,0.00016467,2]
[347090674,1735492280185,-334.877,0.0001653,2]
[347090675,1735492280194,-1488.33,0.00017016,2]
[347090676,1735492280204,-1488.33,0.0001729,2]
[347090677,1735492280214,-1488.33,0.00017564,2]
[347090678,1735492280223,-290701.01081598,0.000178,3]
[347090679,1735492280235,-288.28818226,0.000178,3]
[347090680,1735492280246,-11172.96745676,0.000178,3]
[347090681,1735492280257,-18831.5365359,0.000178,3]
[347090682,1735492280268,-5332.0,0.000178,3]
[347090683,1735492280286,-256.48,0.000178,3]
[347090684,1735492280297,-1155.924025,0.000178,3]
[347090685,1735492280315,-6010.99,0.00016193,2]
[347090686,1735492280324,-159296.7809285,0.000178,3]
[347090687,1735492280335,-111597.34851662,0.000178,3]
[347090688,1735492280346,-350.0,0.000178,3]
[347090689,1735492281019,518.28,0.00010412,2]
[347090703,1735492375304,153.61,0.000179,31]
[347090704,1735492375373,153.61,0.000179,31]
[347090705,1735492375424,153.61,0.000179,31]
[347090706,1735492375488,153.61,0.000179,31]
[347090707,1735492375568,153.61,0.000179,31]
[347090708,1735492375611,153.61,0.000179,31]
[347090709,1735492375677,153.61,0.000179,31]
[347090711,1735492734876,500.0,0.00016466,120]
[347090712,1735492735144,500.0,0.00016494,120]
[347090713,1735492735405,500.0,0.00016521,120]
[347090714,1735492735682,500.0,0.00016549,120]
[347090715,1735492735950,500.0,0.00016576,120]
[347090716,1735492736233,500.0,0.00016603,120]
[347090717,1735492736512,500.0,0.00016631,120]
[347090718,1735492736787,238.1,0.00016658,120]
[347090722,1735492945150,285.02,0.00010988,2]
[347090723,1735493063004,276.8,0.00016658,30]
[347090724,1735493131804,746.31701244,0.0001,2]
[347090725,1735493131828,2111.01509035,0.0001,2]
[347090726,1735493142162,161.48,0.00010137,2]
[347090727,1735493226566,442.41,8.982e-05,2]
[347090732,1735493344781,218.24,0.00010938,2]
[347090733,1735493346199,250.0,0.00010938,2]
[347090755,1735493431457,-250.0,0.00011065,2]
[347090756,1735493431467,-1000.0,0.00011065,2]
[347090757,1735493431477,-442.41,0.00011246,2]
[347090758,1735493431487,-300.0,0.00011335,2]
[347090759,1735493431496,-4260.4598,0.00011336,2]
[347090760,1735493431505,-385.6819,0.00011336,2]
[347090761,1735493431515,-2033.7834,0.00011336,2]
[347090762,1735493431524,-3862.3307,0.00011336,2]
[347090763,1735493431534,-50000.0,0.00011336,2]
[347090764,1735493431544,-849.027,0.00011337,2]
[347090765,1735493431554,-166.93681204,0.00011433,2]
[347090766,1735493431564,-3776.53082574,0.00011435,2]
[347090767,1735493431573,-824.4742,0.00011435,2]
[347090768,1735493431583,-55555.0,0.00011435,2]
[347090769,1735493431593,-97353.9481,0.00011436,2]
[347090770,1735493431603,-503.87,0.00011436,2]
[347090771,1735493431612,-506.51,0.00011436,2]
[347090772,1735493431622,-495.98,0.00011436,2]
[347090773,1735493431631,-490.59,0.00011436,2]
[347090774,1735493431641,-500.0,0.00011436,2]
[347090775,1735493431650,-1000.0,0.00011436,2]
[347090776,1735493431660,-503.59,0.00011436,2]
[347090777,1735493431669,-1032.3382,0.00011507,2]
[347090778,1735493431678,-500.0,0.00011531,2]
[347090779,1735493431687,-500.0,0.00011531,2]
[347090780,1735493431696,-500.0,0.00011531,2]
[347090781,1735493431708,-500.0,0.00011531,2]
[347090782,1735493431718,-500.0,0.00011531,2]
[347090783,1735493431729,-500.0,0.00011532,2]
[347090784,1735493431739,-500.0,0.00011532,2]
[347090785,1735493431750,-500.0,0.00011532,2]
[347090786,1735493431760,-500.0,0.00011532,2]
[347090787,1735493431770,-3192.16,0.00011532,2]
[347090788,1735493431779,-500.0,0.00011532,2]
[347090789,1735493431789,-500.0,0.00011532,2]
[347090790,1735493431801,-500.0,0.00011532,2]
[347090791,1735493431811,-500.0,0.00011532,2]
[347090793,1735493431821,-500.0,0.00011532,2]
[347090795,1735493431830,-500.0,0.00011532,2]
[347090797,1735493431840,-1002.37,0.00011532,2]
[347090799,1735493431850,-500.0,0.00011532,2]
[347090801,1735493431859,-500.0,0.00011532,2]
[347090803,1735493431869,-500.0,0.00011532,2]
[347090805,1735493431879,-500.0,0.00011532,2]
[347090807,1735493431888,-504.97172623,0.00011532,2]
[347090809,1735493431898,-500.0,0.00011532,2]
[347090811,1735493431908,-500.0,0.00011532,2]
[347090813,1735493431918,-560.7,0.00011532,2]
[347090815,1735493431927,-500.0,0.00011532,2]
[347090817,1735493431936,-500.0,0.00011532,2]
[347090819,1735493431947,-1915.21,0.00011532,2]
[347090821,1735493431959,-500.0,0.00011532,2]
[347090823,1735493431969,-500.0,0.00011532,2]
[347090825,1735493431979,-500.0,0.00011532,2]
[347090827,1735493431988,-500.0,0.00011532,2]
[347090829,1735493431999,-706.9,0.00011532,2]
[347090831,1735493432009,-500.0,0.00011532,2]
[347090833,1735493432019,-854.58,0.00011532,2]
[347090836,1735493432030,-500.0,0.00011532,2]
[347090838,1735493432040,-500.0,0.00011532,2]
[347090839,1735493432050,-500.0,0.00011532,2]
[347090840,1735493432060,-500.0,0.00011532,2]
[347090841,1735493432069,-500.0,0.00011532,2]
[347090842,1735493432079,-500.0,0.00011532,2]
[347090843,1735493432089,-500.0,0.00011532,2]
[347090844,1735493432098,-500.0,0.00011533,2]
[347090845,1735493432108,-500.0,0.00011533,2]
[347090846,1735493432118,-500.0,0.00011533,2]
[347090847,1735493432128,-500.0,0.00011533,2]
[347090848,1735493432138,-500.0,0.00011533,2]
[347090849,1735493432148,-500.0,0.00011533,2]
[347090850,1735493432157,-500.0,0.00011533,2]
[347090852,1735493432167,-500.0,0.00011533,2]
[347090854,1735493432176,-500.0,0.00011533,2]
[347090856,1735493432185,-500.0,0.00011533,2]
[347090858,1735493432195,-500.0,0.00011533,2]
[347090860,1735493432204,-500.0,0.00011533,2]
[347090862,1735493432214,-500.0,0.00011533,2]
[347090864,1735493432224,-500.0,0.00011533,2]
[347090866,1735493432233,-500.0,0.00011533,2]
[347090868,1735493432243,-500.0,0.00011533,2]
[347090870,1735493432252,-500.0,0.00011533,2]
[347090872,1735493432261,-500.0,0.00011533,2]
[347090874,1735493432271,-500.0,0.00011533,2]
[347090876,1735493432280,-500.0,0.00011533,2]
[347090878,1735493432289,-500.0,0.00011533,2]
[347090880,1735493432298,-500.0,0.00011533,2]
[347090882,1735493432308,-532.31866054,0.00011533,2]
[347090884,1735493432317,-500.0,0.00011533,2]
[347090886,1735493432326,-500.0,0.00011533,2]
[347090888,1735493432335,-500.0,0.00011533,2]
[347090890,1735493432344,-500.0,0.00011533,2]
[347090892,1735493432354,-500.0,0.00011533,2]
[347090894,1735493432363,-500.0,0.00011533,2]
[347090896,1735493432373,-500.0,0.00011533,2]
[347090898,1735493432382,-500.0,0.00011533,2]
[347090900,1735493432395,-500.0,0.00011533,2]
[347090902,1735493432404,-500.0,0.00011533,2]
[347090904,1735493432413,-500.0,0.00011533,2]
[347090906,1735493432423,-500.0,0.00011533,2]
[347090908,1735493432433,-500.0,0.00011533,2]
[347090910,1735493432443,-500.0,0.00011533,2]
[347090912,1735493432452,-500.0,0.00011533,2]
[347090914,1735493432462,-500.0,0.00011533,2]
[347090916,1735493432472,-500.0,0.00011533,2]
[347090919,1735493432482,-500.0,0.00011533,2]
[347090920,1735493432492,-500.0,0.00011533,2]
[347090923,1735493432501,-500.0,0.00011533,2]
[347090925,1735493432511,-500.0,0.00011533,2]
[347090926,1735493432520,-500.0,0.00011533,2]
[347090929,1735493432530,-500.0,0.00011533,2]
[347090931,1735493432540,-778.59,0.00011533,2]
[347090933,1735493432549,-500.0,0.00011533,2]
[347090935,1735493432558,-500.0,0.00011533,2]
[347090937,1735493432569,-500.0,0.00011533,2]
[347090938,1735493432579,-500.0,0.00011533,2]
[347090940,1735493432589,-500.0,0.00011533,2]
[347090942,1735493432598,-500.0,0.00011533,2]
[347090944,1735493432607,-500.0,0.00011533,2]
[347090947,1735493432617,-500.0,0.00011533,2]
[347090949,1735493432626,-500.0,0.00011533,2]
[347090951,1735493432636,-500.0,0.00011533,2]
[347090952,1735493432645,-500.0,0.00011533,2]
[347090955,1735493432655,-500.0,0.00011533,2]
[347090956,1735493432664,-500.0,0.00011533,2]
[347090959,1735493432674,-500.0,0.00011533,2]
[347090960,1735493432684,-500.0,0.00011533,2]
[347090963,1735493432693,-500.0,0.00011533,2]
[347090964,1735493432703,-500.0,0.00011533,2]
[347090966,1735493432714,-500.0,0.00011533,2]
[347090968,1735493432724,-500.0,0.00011533,2]
[347090971,1735493432733,-500.0,0.00011533,2]
[347090973,1735493432743,-500.0,0.00011533,2]
[347090974,1735493432752,-500.0,0.00011533,2]
[347090977,1735493432762,-500.0,0.00011533,2]
[347090978,1735493432771,-500.0,0.00011533,2]
[347090980,1735493432780,-500.0,0.00011533,2]
[347090982,1735493432790,-641.68,0.00011533,2]
[347090984,1735493432799,-500.0,0.00011533,2]
[347090986,1735493432808,-500.0,0.00011533,2]
[347090988,1735493432818,-500.0,0.00011533,2]
[347090990,1735493432828,-500.0,0.00011533,2]
[347090992,1735493432837,-500.0,0.00011533,2]
[347090994,1735493432847,-500.0,0.00011533,2]
[347090996,1735493432856,-500.0,0.00011533,2]
[347090999,1735493432866,-500.0,0.00011533,2]
[347091000,1735493432875,-500.0,0.00011533,2]
[347091003,1735493432885,-500.0,0.00011533,2]
[347091004,1735493432894,-500.0,0.00011533,2]
[347091006,1735493432904,-500.0,0.00011533,2]
[347091008,1735493432913,-500.0,0.00011533,2]
[347091010,1735493432922,-500.0,0.00011533,2]
[347091012,1735493432931,-1356.36,0.00011533,2]
[347091014,1735493432941,-152.363359,0.00011533,2]
[347091016,1735493432950,-153.095503,0.00011533,2]
[347091018,1735493432959,-500.0,0.00011533,2]
[347091020,1735493432968,-151.299562,0.00011533,2]
[347091022,1735493432978,-585.85,0.00011533,2]
[347091024,1735493432988,-500.0,0.00011533,2]
[347091026,1735493432998,-500.0,0.00011533,2]
[347091028,1735493433007,-500.0,0.00011533,2]
[347091030,1735493433017,-500.0,0.00011533,2]
[347091032,1735493433027,-538.78,0.00011533,2]
[347091034,1735493433036,-500.0,0.00011533,2]
[347091036,1735493433045,-500.0,0.00011533,2]
[347091038,1735493433055,-500.0,0.00011533,2]
[347091040,1735493433064,-500.0,0.00011533,2]
[347091042,1735493433073,-500.0,0.00011533,2]
[347091044,1735493433083,-500.0,0.00011533,2]
[347091046,1735493433092,-500.0,0.00011533,2]
[347091048,1735493433102,-500.0,0.00011533,2]
[347091050,1735493433111,-500.0,0.00011533,2]
[347091052,1735493433122,-500.0,0.00011533,2]
[347091055,1735493433132,-500.0,0.00011533,2]
[347091057,1735493433142,-500.0,0.00011533,2]
[347091059,1735493433152,-500.0,0.00011533,2]
[347091061,1735493433162,-500.0,0.00011533,2]
[347091063,1735493433171,-500.0,0.00011533,2]
[347091065,1735493433180,-549.01,0.00011533,2]
[347091067,1735493433189,-500.0,0.00011533,2]
[347091069,1735493433198,-597.76,0.00011533,2]
[347091071,1735493433208,-500.0,0.00011533,2]
[347091073,1735493433217,-500.0,0.00011533,2]
[347091075,1735493433227,-500.0,0.00011533,2]
[347091076,1735493433237,-500.0,0.00011533,2]
[347091078,1735493433246,-500.0,0.00011533,2]
[347091080,1735493433256,-1707.38,0.00011533,2]
[347091082,1735493433266,-500.0,0.00011533,2]
[347091084,1735493433276,-500.0,0.00011533,2]
[347091086,1735493433285,-500.0,0.00011533,2]
[347091089,1735493433295,-500.0,0.00011533,2]
[347091090,1735493433305,-500.0,0.00011533,2]
[347091093,1735493433314,-500.0,0.00011533,2]
[347091095,1735493433324,-500.0,0.00011533,2]
[347091097,1735493433334,-500.0,0.00011533,2]
[347091098,1735493433343,-500.0,0.00011533,2]
[347091101,1735493433353,-500.0,0.00011533,2]
[347091103,1735493433363,-500.0,0.00011533,2]
[347091105,1735493433372,-500.0,0.00011533,2]
[347091107,1735493433382,-500.0,0.00011533,2]
[347091109,1735493433392,-500.0,0.00011533,2]
[347091110,1735493433401,-500.0,0.00011533,2]
[347091112,1735493433411,-500.0,0.00011533,2]
[347091115,1735493433420,-500.0,0.00011533,2]
[347091117,1735493433430,-500.0,0.00011533,2]
[347091118,1735493433439,-500.0,0.00011533,2]
[347091120,1735493433448,-500.0,0.00011533,2]
[347091122,1735493433458,-500.0,0.00011533,2]
[347091124,1735493433468,-500.0,0.00011533,2]
[347091127,1735493433478,-500.0,0.00011533,2]
[347091129,1735493433488,-500.0,0.00011533,2]
[347091131,1735493433497,-500.0,0.00011533,2]
[347091132,1735493433506,-500.0,0.00011533,2]
[347091135,1735493433516,-500.0,0.00011533,2]
[347091137,1735493433525,-500.0,0.00011533,2]
[347091139,1735493433534,-191.04640626,0.00011533,2]
[347091141,1735493433545,-500.0,0.00011533,2]
[347091143,1735493433554,-500.0,0.00011533,2]
[347091145,1735493433563,-500.0,0.00011533,2]
[347091147,1735493433573,-500.0,0.00011533,2]
[347091148,1735493433582,-500.0,0.00011533,2]
[347091150,1735493433591,-500.0,0.00011533,2]
[347091152,1735493433600,-500.0,0.00011533,2]
[347091153,1735493433610,-500.0,0.00011533,2]
[347091155,1735493433619,-500.0,0.00011533,2]
[347091157,1735493433628,-500.0,0.00011533,2]
[347091159,1735493433639,-500.0,0.00011533,2]
[347091161,1735493433648,-500.0,0.00011533,2]
[347091163,1735493433657,-500.0,0.00011533,2]
[347091165,1735493433666,-500.0,0.00011533,2]
[347091167,1735493433676,-500.0,0.00011533,2]
[347091169,1735493433685,-500.0,0.00011533,2]
[347091171,1735493433695,-500.0,0.00011533,2]
[347091196,1735493433924,-500.0,0.00011533,2]
[347091198,1735493433933,-500.0,0.00011533,2]
[347091200,1735493433943,-500.0,0.00011533,2]
[347091202,1735493433957,-500.0,0.00011533,2]
[347091204,1735493433967,-500.0,0.00011534,2]
[347091206,1735493433978,-500.0,0.00011534,2]
[347091208,1735493433987,-500.0,0.00011534,2]
[347091210,1735493433997,-500.0,0.00011534,2]
[347091212,1735493434007,-500.0,0.00011534,2]
[347091214,1735493434016,-500.0,0.00011534,2]
[347091216,1735493434025,-500.0,0.00011534,2]
[347091218,1735493434035,-500.0,0.00011534,2]
[347091220,1735493434044,-500.0,0.00011534,2]
[347091222,1735493434054,-500.0,0.00011534,2]
[347091224,1735493434063,-500.0,0.00011534,2]
[347091226,1735493434072,-500.0,0.00011534,2]
[347091228,1735493434082,-500.0,0.00011534,2]
[347091230,1735493434091,-500.0,0.00011534,2]
[347091232,1735493434100,-500.0,0.00011534,2]
[347091234,1735493434109,-500.0,0.00011534,2]
[347091236,1735493434119,-500.0,0.00011534,2]
[347091238,1735493434128,-500.0,0.00011534,2]
[347091240,1735493434137,-500.0,0.00011534,2]
[347091242,1735493434146,-500.0,0.00011534,2]
[347091244,1735493434155,-500.0,0.00011534,2]
[347091246,1735493434164,-500.0,0.00011534,2]
[347091248,1735493434173,-500.0,0.00011534,2]
[347091250,1735493434182,-500.0,0.00011534,2]